[Event "USA Championship 2022"]
[Site "Saint Louis"]
[Date "2022.10.13"]
[Round "8.5"]
[White "Lenderman, Aleksandr"]
[Black "Dominguez Perez, Leinier"]
[Result "1/2-1/2"]
[ECO "E05"]
[WhiteElo "2535"]
[BlackElo "2747"]
[Annotator "TA"]
[PlyCount "76"]
[EventDate "2022.09.05"]
[EventType "tourn"]
[EventCountry "USA"]
[SourceTitle "playchess.com"]
[Source "ChessBase"]
[SourceQuality "1"]
[TimeControl "40/5400+30:1800+30"]

{[%evp 13,76,8,14,0,31,16,16,10,8,17,16,12,29,12,24,25,25,13,24,14,14,14,14,21,31,20,21,6,11,0,0,0,0,0,6,0,34,39,46,46,56,60,77,77,76,67,363,16,13,20,21,9,14,0,0,0,0,0,8,0,0,0,8,0,0]} 1. d4 {[%emt 0:00:02]} Nf6 {[%emt 0:03:06]} 2. c4 {[%emt 0:00:05]} e6 {[%emt 0:00:05]} 3. g3 {[%emt 0:00:15]} d5 {[%emt 0:00:24]} 4. Bg2 {[%emt 0:00:04]} Be7 {[%emt 0:00:07]} 5. Nf3 {[%emt 0:00:04]} O-O {[%emt 0:00:10]} 6. O-O {[%emt 0:00:05]} dxc4 {[%emt 0:00:05]} 7. Qc2 {[%emt 0:00:03]} b5 {[%emt 0:00:12]} 8. a4 {[%emt 0:00:19] E05: Open Catalan: 5 Nf3 Be7.} Bb7 {[%emt 0:00:05]} 9. axb5 {[%emt 0:00:10]} a6 {[%emt 0:00:05]} 10. bxa6 {[%emt 0:00:27]} Nxa6 {[%emt 0:00:11][%cal Bb8a6,Ba6b4,Bb4c2][%mdl 32]} 11. Qxc4 {[%emt 0:00:19]} Bd5 {[%emt 0:00:06]} 12. Qc3 {[%emt 0:00:30]} c5 {[%emt 0:00:07]} 13. Be3 {[%emt 0:01:26]} Ne4 {[%emt 0:00:06]} 14. Qe1 {[%emt 0:03:06]} Nb4 {[%emt 0:00:09]} 15. Rxa8 {[%emt 0:04:29]} Qxa8 {[%emt 0:00:02]} 16. Nc3 {[%emt 0:00:31]} Nxc3 {[%emt 0:00:09]} 17. bxc3 {[%emt 0:00:09]} Nc2 {[%emt 0:00:05]} 18. Qd2 {[%emt 0:00:18]} Nxe3 {[%emt 0:00:12]} 19. Qxe3 {[%emt 0:00:09]} h6 {[%emt 0:00:26] [#]} 20. Qf4 $146 {[%emt 0:17:15]} ({Predecessor:} 20. Rd1 cxd4 21. cxd4 Rd8 22. Qf4 Qa4 23. Qd2 Bf6 24. e3 g6 25. h4 h5 26. Qe2 {1-0 (67) Martirosyan,H (2633)-Gavrilescu,D (2512) Terme Catez 2022}) 20... Rd8 {[%emt 0:24:12]} 21. c4 {[%emt 0:04:35]} Be4 {[%emt 0:07:10]} 22. dxc5 {[%emt 0:03:14]} Bxc5 {[%emt 0:03:05]} 23. Qe5 {[%emt 0:01:24]} Bd6 {[%emt 0:24:49] This bishop pair is nice.} 24. Qc3 {[%emt 0:00:56]} Rc8 {[%emt 0:02:26]} 25. Ra1 {[%emt 0:03:37]} Qc6 {[%emt 0:02:02]} 26. Rc1 {[%emt 0:06:45]} Bd5 {[%emt 0:01:09][%cal Rc6c4]} 27. Qd2 {[%emt 0:02:32] Threatens to win with Nd4.} Qc5 {[%emt 0:10:22]} 28. Nd4 {[%emt 0:03:29] And now Nb3 would win.} Bxg2 {[%emt 0:00:48]} (28... Bxc4 $2 {[#]} 29. Nc6 $1 $18 {[%mdl 512]}) 29. Kxg2 {[%emt 0:00:07]} Bxg3 $2 {[%emt 0:00:36][%mdl 8192]} 30. hxg3 $2 {[%emt 0:01:03]} ({Weaker is} 30. fxg3 Rd8 $11) ({White must play} 30. Kxg3 $18 {Strongly threatening Nf3.} Qd6+ 31. f4) 30... Rd8 $1 $11 {[%emt 0:00:02] The position is equal.} 31. e3 {[%emt 0:01:41]} e5 {[%emt 0:00:01] [#]} 32. Qe2 $1 {[%emt 0:01:13]} exd4 {[%emt 0:00:08]} 33. exd4 {[%emt 0:00:05]} Rxd4 {[%emt 0:04:32] KQR-KQR} 34. Qe8+ {[%emt 0:00:24]} Qf8 $1 {[%emt 0:00:02]} 35. Qc6 {[%emt 0:01:50]} Qd6 {[%emt 0:02:32]} 36. Qe8+ {[%emt 0:05:16]} Qf8 {[%emt 0:00:06]} 37. Qc6 {[%emt 0:00:03]} Qd6 {[%emt 0:00:07]} 38. Qe8+ {[%emt 0:00:25]} Qf8 {[%emt 0:00:02] Weighted Error Value: White=0.16 (very precise) /Black=0.22 (precise)} 1/2-1/2

[Event "USA Championship 2022"]
[Site "Saint Louis"]
[Date "2022.10.13"]
[Round "8.6"]
[White "Aronian, Levon"]
[Black "Niemann, Hans Moke"]
[Result "1/2-1/2"]
[ECO "C58"]
[WhiteElo "2755"]
[BlackElo "2699"]
[Annotator "TA"]
[PlyCount "114"]
[EventDate "2022.09.05"]
[EventType "tourn"]
[EventCountry "USA"]
[SourceTitle "playchess.com"]
[Source "ChessBase"]
[SourceQuality "1"]
[TimeControl "40/5400+30:1800+30"]

{[%evp 14,114,33,25,23,27,28,20,31,19,13,16,11,23,18,14,16,0,4,0,0,0,-29,-31,0,0,0,0,12,-37,-20,-25,-14,-30,-25,-49,-50,-33,-13,-14,0,-45,-27,-47,-37,-41,-8,-39,0,-29,-23,-20,-21,-31,14,6,18,18,13,12,12,16,19,18,18,18,21,4,7,0,11,10,10,11,10,0,4,0,8,7,8,6,8,8,16,14,16,16,16,11,11,0,0,0,0,0,0,0,0,0,0,0,0]} 1. e4 {[%emt 0:00:04]} e5 {[%emt 0:00:31]} 2. Nf3 {[%emt 0:00:09]} Nc6 {[%emt 0:00:10]} 3. Bc4 {[%emt 0:00:05]} Nf6 {[%emt 0:00:13]} 4. Ng5 {[%emt 0:00:04]} d5 {[%emt 0:00:13]} 5. exd5 {[%emt 0:00:05]} Na5 {[%emt 0:00:09]} 6. Bb5+ {[%emt 0:00:03]} c6 {[%emt 0:00:09]} 7. dxc6 {[%emt 0:00:02]} bxc6 {[%emt 0:00:08]} 8. Bd3 {[%emt 0:00:03]} Nd5 {[%emt 0:00:24] C58: Two Knights: 4 Ng5 d5 5 exd5 Na5 sidelines.} 9. Nf3 {[%emt 0:00:03]} (9. Qh5 g6 10. Nxf7 gxh5 $17) 9... Bd6 {[%emt 0:00:59]} 10. O-O {[%emt 0:00:07]} Nf4 {[%emt 0:00:06]} 11. Nc3 {[%emt 0:00:27] Nowadays more popular than 11.Re1.} Nxd3 {[%emt 0:01:55]} 12. cxd3 {[%emt 0:00:05][%cal Ob2b4]} O-O {[%emt 0:00:10]} 13. b3 {[%emt 0:00:02]} c5 {[%emt 0:10:27]} 14. Ba3 {[%emt 0:01:34]} Ba6 {[%emt 0:06:03]} 15. Re1 {[%emt 0:01:15]} Re8 {[%emt 0:12:41] [#]} 16. Re3 $146 {[%emt 0:08:17]} ({Predecessor:} 16. Ne4 Bxd3 17. Nxd6 Qxd6 18. Rc1 Nb7 19. Re3 Rad8 20. Ne1 Bb5 21. Rec3 Qxd2 22. Qxd2 Rxd2 23. Bxc5 Rxa2 {0-1 (56) Lei,T (2535)-Vidit,S (2723) chess24.com INT 2022}) 16... Rc8 {[%emt 0:08:33]} 17. Ne4 {[%emt 0:09:27] Nfg5 is the strong threat.} Bf8 $1 {[%emt 0:01:19]} 18. Rc1 {[%emt 0:07:34][%cal Re4c5]} Nb7 {[%emt 0:01:08]} (18... Nc6 {feels hotter.} 19. Bxc5 f5 20. Neg5 Bxc5 21. Rxc5 h6) 19. Ne1 {[%emt 0:03:02]} Bb5 {[%emt 0:12:42]} (19... f5 $5 20. Nc3 $8 g6 $11) 20. Bb2 {[%emt 0:05:42]} Nd6 {[%emt 0:05:30]} 21. Nxd6 {[%emt 0:08:14]} ({Of course not} 21. Rxc5 Rxc5 22. Nxc5 Nf5 $17) ({Don't play} 21. Nxc5 Nf5 22. b4 Nxe3 23. dxe3 a5 $15) (21. a4 $11 {is more appropriate.} Bd7 22. Nf3 (22. Nxc5 Nf5 $11) (22. Rxc5 Rxc5 23. Nxc5 Nf5 $11)) 21... Qxd6 $15 {[%emt 0:00:56]} 22. Rc3 {[%emt 0:04:52]} g6 {[%emt 0:04:39][%mdl 1024] Black has compensation.} 23. Rc1 {[%emt 0:03:17]} f6 {[%emt 0:00:52]} 24. Qc2 {[%emt 0:04:25]} Red8 {[%emt 0:00:42]} 25. Rh3 {[%emt 0:01:36]} Bd7 {[%emt 0:02:33]} 26. Rh4 {[%emt 0:00:25][%cal Of2f4]} Bb5 {[%emt 0:01:36]} 27. Rh3 {[%emt 0:00:03]} Kg7 {[%emt 0:03:23]} 28. Re3 {[%emt 0:01:06]} Qd5 {[%emt 0:02:48]} 29. Qc3 {[%emt 0:05:06][%cal Of2f4]} Rd6 {[%emt 0:00:15]} 30. Re4 {[%emt 0:05:42]} g5 {[%emt 0:06:14]} (30... Qc6 $5 {[%cal Rd6d3]}) 31. h4 {[%emt 0:06:42] [#] Threatens to win with hxg5.} h6 {[%emt 0:00:27]} 32. hxg5 {[%emt 0:00:31]} hxg5 {[%emt 0:00:06]} 33. Rg4 {[%emt 0:01:11][%cal Od3d4]} Kf7 {[%emt 0:05:20]} 34. d4 {[%emt 0:01:09] The position is equal.} exd4 {[%emt 0:04:44] [#]} 35. Rxd4 {[%emt 0:00:30]} Qxd4 {[%emt 0:00:25]} 36. Qxd4 {[%emt 0:00:05]} Rxd4 {[%emt 0:00:07]} 37. Bxd4 {[%emt 0:00:04][%mdl 64] Pin} a5 {[%emt 0:00:50]} 38. Bc3 {[%emt 0:02:26]} a4 {[%emt 0:00:36]} 39. bxa4 {[%emt 0:00:24]} Bxa4 {[%emt 0:00:10]} 40. Rb1 {[%emt 0:00:03]} Ra8 {[%emt 0:02:08]} 41. Rb7+ {[%emt 0:30:48]} Kg6 {[%emt 0:30:52]} 42. Rb6 {[%emt 0:01:29]} Be7 {[%emt 0:00:46]} 43. Nd3 {[%emt 0:00:05] Threatening Ne5+.} Kf7 {[%emt 0:01:02]} 44. Rb7 {[%emt 0:01:59] With the idea Nxc5.} Ke6 {[%emt 0:01:48]} 45. f4 {[%emt 0:07:49][%cal Of4f5]} c4 {[%emt 0:02:11]} 46. f5+ {[%emt 0:02:11]} Kxf5 {[%emt 0:00:54]} 47. Rxe7 {[%emt 0:00:03]} cxd3 $11 {[%emt 0:00:11][%mdl 4096] Endgame KRB-KRB} 48. Re3 {[%emt 0:00:01]} Bc2 {[%emt 0:02:21]} 49. Rf3+ {[%emt 0:00:44]} Kg4 {[%emt 0:00:07]} 50. Rxf6 {[%emt 0:00:26]} Rxa2 {[%emt 0:00:08]} 51. Kf2 {[%emt 0:00:03]} Ra4 {[%emt 0:00:11]} 52. Rf3 {[%emt 0:00:14]} Rf4 {[%emt 0:00:07]} 53. Rxf4+ {[%emt 0:00:04]} gxf4 {[%emt 0:00:04]} 54. Bb2 {[%emt 0:00:05]} Bb1 {[%emt 0:00:04]} 55. Bc3 {[%emt 0:00:03]} Bc2 {[%emt 0:00:05]} 56. Bb2 $1 {[%emt 0:00:02]} Bb1 {[%emt 0:00:02]} 57. Bc3 {[%emt 0:00:06]} Bc2 {[%emt 0:00:09] Weighted Error Value: White=0.06 (flawless) /Black=0.07 (flawless)} 1/2-1/2

[Event "USA Championship 2022"]
[Site "Saint Louis"]
[Date "2022.10.13"]
[Round "8.7"]
[White "Moradiabadi, Elshan"]
[Black "Robson, Ray"]
[Result "0-1"]
[ECO "C65"]
[WhiteElo "2534"]
[BlackElo "2690"]
[Annotator "TA"]
[PlyCount "76"]
[EventDate "2022.09.05"]
[EventType "tourn"]
[EventCountry "USA"]
[SourceTitle "playchess.com"]
[Source "ChessBase"]
[SourceQuality "1"]
[TimeControl "40/5400+30:1800+30"]

{[%evp 9,76,16,22,9,16,13,16,0,8,4,2,-4,3,0,0,0,8,8,3,14,26,15,19,20,29,0,25,0,14,0,0,0,0,0,0,-51,-37,-50,-51,-47,-56,-347,-350,-332,-334,-422,-422,-427,-321,-1141,-1123,-974,-377,-377,-384,-402,-384,-945,-939,-902,-918,-1122,-1135,-1153,-869,-849,-837,-29992,-29988]} 1. e4 {[%emt 0:03:18]} e5 {[%emt 0:00:18]} 2. Nf3 {[%emt 0:00:05]} Nc6 {[%emt 0:00:13]} 3. Bb5 {[%emt 0:00:11]} Nf6 {[%emt 0:00:28][%cal Bg8f6,Bf6d7,Bd7c5][%mdl 32]} 4. d3 {[%emt 0:00:18]} Bc5 {[%emt 0:00:40]} 5. Bxc6 {[%emt 0:00:27]} dxc6 {[%emt 0:00:20]} 6. Nbd2 {[%emt 0:00:19] C65: Ruy Lopez: Berlin Defence (3...Nf6), unusual lines and 4 0-0 Bc5.} Nd7 {[%emt 0:03:28]} 7. Nc4 {[%emt 0:01:06]} f6 $1 {[%emt 0:01:27] 7...f6 scores better than 7...0-0.} 8. Be3 {[%emt 0:00:05] The position is equal.} Bxe3 {[%emt 0:08:41]} 9. Nxe3 {[%emt 0:00:03]} Nc5 {[%emt 0:05:08]} 10. O-O {[%emt 0:17:37]} Ne6 {[%emt 0:04:57]} 11. c3 {[%emt 0:00:03]} c5 {[%emt 0:02:24] Prevents d4.} 12. Qc2 {[%emt 0:03:50]} b6 {[%emt 0:11:13]} 13. Rfd1 {[%emt 0:05:22] [#]} Qd7 $146 {[%emt 0:04:59]} ({Predecessor:} 13... O-O 14. Rd2 Kh8 15. Rad1 Qe8 16. d4 cxd4 17. cxd4 c5 18. dxc5 bxc5 19. Ne1 a5 {½-½ (39) Marten,G (2421)-Genga,S (2421) ICCF email 2020}) 14. a4 {[%emt 0:01:35]} Ba6 {[%emt 0:23:18]} 15. b4 {[%emt 0:06:35]} Rd8 {[%emt 0:03:41][%cal Ra6d3]} 16. b5 {[%emt 0:17:32]} Bb7 {[%emt 0:00:27]} 17. Qb3 {[%emt 0:03:15]} Qf7 {[%emt 0:04:04]} 18. g3 {[%emt 0:04:00]} a5 {[%emt 0:03:08]} 19. bxa6 {[%emt 0:04:22]} Bxa6 {[%emt 0:00:03]} 20. a5 {[%emt 0:01:46]} b5 {[%emt 0:04:39]} 21. Nf5 {[%emt 0:05:49]} O-O {[%emt 0:01:12]} 22. Qc2 {[%emt 0:02:02]} (22. d4 $11) 22... Kh8 {[%emt 0:02:29]} 23. d4 {[%emt 0:03:36]} Qh5 $1 {[%emt 0:03:48]} 24. d5 {[%emt 0:08:42]} Nf4 {[%emt 0:00:03]} 25. N5h4 {[%emt 0:01:42][%mdl 8192] Loses the game.} (25. Nd2 $15 g6 26. Nh4) 25... g5 $19 {[%emt 0:01:03]} 26. gxf4 {[%emt 0:00:39]} gxh4 {[%emt 0:00:21]} 27. Qe2 {[%emt 0:00:21]} exf4 {[%emt 0:03:58]} ({Worse is} 27... b4 28. Qxa6 Qxf3 29. Qd3 Qg4+ 30. Kh1 $17) 28. Kf1 {[%emt 0:00:36]} Rg8 {[%emt 0:01:05] [#] Strongly threatening ...Rde8.} 29. c4 $2 {[%emt 0:01:19]} (29. Ke1) 29... bxc4 {[%emt 0:00:42]} 30. Ra3 {[%emt 0:01:23]} Rb8 $2 {[%emt 0:02:07]} (30... Rde8 31. Rc3 Qg6) 31. Rc3 {[%emt 0:01:04]} Qg4 {[%emt 0:00:47]} 32. Ke1 {[%emt 0:00:20]} Rge8 {[%emt 0:00:48]} 33. Nd2 $2 {[%emt 0:02:22]} (33. Qc2) 33... Qg1+ {[%emt 0:00:25]} 34. Qf1 {[%emt 0:00:02]} Qg7 {[%emt 0:00:19] [#] aiming for ...f5.} 35. Rdc1 {[%emt 0:00:54]} f5 {[%emt 0:00:19]} 36. f3 {[%emt 0:00:01]} Qd4 {[%emt 0:02:55]} 37. Qf2 {[%emt 0:00:02]} Rg8 {[%emt 0:01:31]} 38. Qxh4 {[%emt 0:03:19]} Rb2 {[%emt 0:00:35] Weighted Error Value: White=0.61/Black=0.37} 0-1

[Event "USA Championship 2022"]
[Site "Saint Louis"]
[Date "2022.10.14"]
[Round "9.1"]
[White "Robson, Ray"]
[Black "Lenderman, Aleksandr"]
[Result "1/2-1/2"]
[ECO "D12"]
[WhiteElo "2690"]
[BlackElo "2535"]
[Annotator "TA"]
[PlyCount "177"]
[EventDate "2022.09.05"]
[EventType "tourn"]
[EventCountry "USA"]
[SourceTitle "playchess.com"]
[Source "ChessBase"]
[SourceQuality "1"]
[TimeControl "40/5400+30:1800+30"]

{[%evp 27,177,27,25,35,41,33,31,32,43,41,38,8,17,0,0,0,19,27,37,36,36,29,49,43,55,40,44,44,50,43,31,25,48,54,61,56,54,64,60,63,54,0,62,0,70,66,60,44,102,85,87,79,97,0,68,61,62,57,75,82,65,38,93,43,41,7,8,0,0,4,6,6,5,0,0,0,0,0,4,1,0,0,0,0,8,1,21,38,45,45,60,28,45,45,53,0,0,0,0,0,0,0,0,0,0,0,0,0,0,0,0,0,0,0,0,0,0,0,0,0,0,0,0,0,0,0,0,0,0,0,0,0,0,0,0,0,0,0,0,0,0,0,0,0,0,0,0,0,0,0,0,-8]} 1. d4 {[%emt 0:04:34]} d5 {[%emt 0:00:02]} 2. c4 {[%emt 0:00:21]} c6 {[%emt 0:00:05]} 3. Nf3 {[%emt 0:00:28]} Nf6 {[%emt 0:00:08]} 4. e3 {[%emt 0:00:36]} Bf5 {[%emt 0:00:06]} 5. Nc3 {[%emt 0:00:35]} e6 {[%emt 0:00:05]} 6. Nh4 {[%emt 0:00:24]} Bg6 {[%emt 0:00:07]} 7. Be2 {[%emt 0:01:48]} Nbd7 {[%emt 0:00:19]} 8. O-O {[%emt 0:01:01]} Bd6 {[%emt 0:00:22]} 9. g3 {[%emt 0:01:07]} O-O {[%emt 0:01:46]} 10. Nxg6 {[%emt 0:01:15]} hxg6 {[%emt 0:00:06]} 11. b3 {[%emt 0:00:59]} Qe7 {[%emt 0:02:47]} 12. Bb2 {[%emt 0:02:32]} Ba3 {[%emt 0:03:57]} 13. Bxa3 {[%emt 0:01:33]} Qxa3 {[%emt 0:00:07]} 14. Qd2 {[%emt 0:00:38]} Qe7 {[%emt 0:03:41]} 15. h4 {[%emt 0:03:15]} Rfd8 {[%emt 0:03:50]} 16. Rfd1 {[%emt 0:12:07]} Ne8 {[%emt 0:14:38]} 17. Kg2 {[%emt 0:07:48]} Nd6 {[%emt 0:02:50]} 18. Rac1 {[%emt 0:12:49]} Nf6 {[%emt 0:02:32]} 19. Bd3 {[%emt 0:03:21]} dxc4 {[%emt 0:06:58]} 20. bxc4 {[%emt 0:01:18]} c5 {[%emt 0:05:42]} 21. d5 {[%emt 0:08:58]} b5 {[%emt 0:02:05]} 22. Nxb5 {[%emt 0:08:26]} (22. cxb5 {is more complex.} exd5 23. a4 Rac8 24. Qa2) 22... exd5 {[%emt 0:03:39]} 23. Nxd6 {[%emt 0:08:24]} Rxd6 {[%emt 0:02:49]} 24. cxd5 {[%emt 0:00:26]} Rxd5 {[%emt 0:01:14]} 25. Qc2 {[%emt 0:01:13]} Rad8 {[%emt 0:01:45]} 26. Be2 {[%emt 0:00:54]} Rxd1 {[%emt 0:02:54]} 27. Bxd1 {[%emt 0:02:22]} Rc8 {[%emt 0:03:29]} 28. Qc4 {[%emt 0:03:31]} (28. Be2 {seems wilder.} Qb7+ 29. Kg1 Qe4 30. Ba6) 28... Nd7 {[%emt 0:03:28]} 29. Qg4 {[%emt 0:02:01]} (29. Be2 {feels hotter.} Nb6 30. Qg4 Qd6 31. Ba6) 29... Rc7 {[%emt 0:01:34]} 30. Be2 {[%emt 0:00:52]} Nf6 {[%emt 0:01:33]} 31. Qc4 {[%emt 0:00:43]} Nd7 {[%emt 0:04:45]} 32. a4 {[%emt 0:01:09]} Nb6 {[%emt 0:03:23]} 33. Qc2 {[%emt 0:00:30]} Nd7 {[%emt 0:01:43]} 34. Qc4 {[%emt 0:00:25]} Nb6 $1 {[%emt 0:00:53]} 35. Qc2 {[%emt 0:00:19]} Nd7 $1 {[%emt 0:00:04]} 36. a5 {[%emt 0:00:59]} Nf6 {[%emt 0:00:18]} 37. Qc4 {[%emt 0:01:31]} Qd8 {[%emt 0:04:56]} ({Black should play} 37... Qe4+ $14 38. Bf3 Qxc4 39. Rxc4 Kf8) 38. Rd1 {[%emt 0:01:32]} Qe7 {[%emt 0:03:14]} 39. Bf3 {[%emt 0:00:31]} (39. Bd3 {looks sharper.} Qd6 40. Bc2 Qc6+ 41. Kg1) 39... Nd7 {[%emt 0:00:40]} 40. Be2 {[%emt 0:04:34]} Nf6 $1 {[%emt 0:00:45]} 41. Qb5 {[%emt 0:09:42]} (41. Bd3 {is interesting.} Qd6 42. Bc2 Qc6+ 43. Kg1) 41... Kh7 {[%emt 0:05:55]} 42. Rc1 {[%emt 0:06:22]} Rc8 {[%emt 0:02:58]} 43. Bf3 {[%emt 0:04:26]} Rc7 {[%emt 0:00:37]} 44. Rc2 {[%emt 0:01:57]} Rc8 {[%emt 0:00:29]} (44... Nd7 $14) 45. a6 {[%emt 0:00:59]} ({White should try} 45. Rc4 $16) 45... Rc7 $1 $14 {[%emt 0:01:02]} 46. Qb8 {[%emt 0:01:03]} c4 {[%emt 0:03:39]} 47. Qb2 {[%emt 0:06:26]} Qc5 {[%emt 0:01:38]} 48. Qd4 {[%emt 0:00:40]} c3 {[%emt 0:01:45]} 49. Qxc5 {[%emt 0:00:56]} Rxc5 {[%emt 0:00:06]} 50. Kf1 {[%emt 0:02:34]} Nd7 {[%emt 0:01:53]} 51. Ke2 {[%emt 0:00:15]} Ne5 {[%emt 0:00:53]} 52. Bb7 {[%emt 0:00:54]} Nc6 {[%emt 0:01:06]} 53. Bxc6 {[%emt 0:00:44]} Rxc6 {[%emt 0:00:05]} 54. e4 {[%emt 0:00:34]} Kg8 {[%emt 0:02:36]} 55. Kd3 {[%emt 0:00:34]} Rxa6 {[%emt 0:00:41]} 56. Rxc3 {[%emt 0:00:07]} Rd6+ {[%emt 0:00:09]} 57. Ke3 {[%emt 0:00:07]} Rd8 {[%emt 0:00:18]} 58. Ra3 {[%emt 0:00:27]} Rd7 {[%emt 0:00:32]} 59. e5 {[%emt 0:01:46]} Kf8 {[%emt 0:00:21]} 60. f4 {[%emt 0:01:17]} Ke7 {[%emt 0:01:01]} 61. g4 {[%emt 0:00:21]} ({Better is} 61. Kf3 $14) 61... Rb7 $11 {[%emt 0:00:25]} 62. f5 {[%emt 0:00:55]} gxf5 {[%emt 0:01:15]} 63. gxf5 {[%emt 0:00:01]} Kf8 {[%emt 0:01:45]} 64. h5 {[%emt 0:00:47]} Rb5 {[%emt 0:01:14]} 65. Kf4 {[%emt 0:00:41]} Rb4+ {[%emt 0:03:55]} 66. Kg5 {[%emt 0:00:14]} Rb5 {[%emt 0:01:11]} 67. Rxa7 {[%emt 0:00:49]} Rxe5 {[%emt 0:00:06]} 68. Ra8+ {[%emt 0:00:28]} Ke7 {[%emt 0:01:37]} 69. Ra7+ {[%emt 0:00:15]} Kf8 $1 {[%emt 0:00:05]} 70. Ra8+ {[%emt 0:00:43]} (70. h6 $5 {[%cal Rh6h7]} Kg8 71. hxg7 Kxg7 72. Rd7 $11) 70... Ke7 {[%emt 0:00:36]} 71. Rg8 {[%emt 0:00:19]} Re1 {[%emt 0:00:17]} (71... f6+ $2 72. Kg6 Re3 73. Rxg7+ Kf8 74. h6 Rg3+ 75. Kxf6 $18) 72. Rxg7 {[%emt 0:00:10]} Rg1+ {[%emt 0:00:25]} 73. Kh6 {[%emt 0:00:05]} Rh1 {[%emt 0:00:08]} 74. Kg5 {[%emt 0:00:55]} Rg1+ {[%emt 0:00:12]} 75. Kh6 {[%emt 0:00:04]} Rh1 {[%emt 0:00:02]} 76. f6+ {[%emt 0:01:14]} Kxf6 {[%emt 0:00:09]} 77. Rg5 {[%emt 0:00:05]} Rh2 {[%emt 0:00:57]} 78. Ra5 {[%emt 0:00:10]} Rg2 {[%emt 0:02:56]} 79. Kh7 {[%emt 0:00:58]} Ke6 {[%emt 0:01:11]} 80. Ra6+ {[%emt 0:00:48]} Ke5 {[%emt 0:01:02]} 81. h6 {[%emt 0:00:19]} f5 {[%emt 0:01:00]} 82. Rg6 {[%emt 0:00:21]} Ra2 {[%emt 0:00:26]} 83. Kh8 {[%emt 0:00:31]} f4 {[%emt 0:00:59]} 84. h7 {[%emt 0:00:15]} f3 {[%emt 0:00:43]} 85. Rg3 {[%emt 0:00:19]} Kf4 {[%emt 0:00:44]} 86. Rxf3+ {[%emt 0:00:08]} Kxf3 {[%emt 0:00:04]} 87. Kg7 {[%emt 0:00:06]} Ra7+ {[%emt 0:00:06]} 88. Kg6 {[%emt 0:00:05]} Rxh7 {[%emt 0:00:05]} 89. Kxh7 {[%emt 0:00:06]} 1/2-1/2